{"text_format":"2","workbook":"xlsx","n_sheets":1,"sheets":["Hallgatók jelölése"],"not_rendered":{"charts":0,"images":0,"macros":0,"external_links":0,"defined_names":2,"comments":0,"pivot_tables":0},"unopened":[],"bounds":{"document_bytes":16777216,"sheet_cells":100000,"run_cost":"one","rows_first":2000,"rows_last":500,"rows_between":2000,"halvings":0,"cell_chars":16384,"cell_head_chars":4096},"cells_cut":0,"cells_raw":0,"read":"whole","date_system":"1900"}

{"sheet":"Hallgatók jelölése","index":0,"n_rows":133,"n_cols":27,"rows_kept":133,"cut":false,"hidden":false,"merged":[[72,2,72,4],[15,6,15,8],[17,6,17,8],[19,6,19,8],[1,0,1,12],[5,1,5,8],[11,1,11,4],[11,6,11,8],[13,6,13,8],[27,6,27,8],[29,6,29,8],[31,6,31,8],[29,2,29,4],[31,2,31,4],[21,6,21,8],[23,6,23,8],[25,6,25,8],[33,6,33,8],[35,6,35,8],[38,0,38,12],[42,1,42,8],[33,2,33,4],[35,2,35,4],[48,1,48,4],[48,6,48,8],[50,6,50,8],[52,6,52,8],[50,2,50,4],[52,2,52,4],[60,6,60,8],[62,6,62,8],[64,6,64,8],[60,2,60,4],[62,2,62,4],[54,6,54,8],[56,6,56,8],[58,6,58,8],[54,2,54,4],[56,2,56,4],[58,2,58,4],[72,6,72,8],[13,2,13,4],[15,2,15,4],[17,2,17,4],[19,2,19,4],[21,2,21,4],[23,2,23,4],[25,2,25,4],[27,2,27,4],[66,6,66,8],[68,6,68,8],[70,6,70,8],[66,2,66,4],[68,2,68,4],[70,2,70,4],[64,2,64,4]]}
[]
["Jelölés ERASMUS+ ösztöndíjra  EUGLOH Partnerintézménybe"]
[{"$nulls":16},"D  MUNCHEN01","Ludwig-Maximilians-Universität München",null,"Karok:",null,"Alapi Tünde",null,null,"SZTE ÁJTK Alkotmányjogi Tanszék"]
[null,"Én, ",null,null,null,"a",null,"kar",{"$nulls":8},"F  EVRY04","Université d'Evry-Val-d'Essonne",null,"ÁJTK",null,"Antal Márk",null,null,"SZTE ÁJTK Bűnügyi Tudományok Intézete"]
[{"$nulls":16},"F  PARIS077","Institut des sciences et industries du vivant et de l'environnement (AgroParisTech)",null,"ÁOK",null,"B. Tóth Ágnes",null,null,"SZTE ÁJTK Civilisztikai Tudományok Intézete"]
[{"$nulls":9},"tanszék",{"$nulls":6},"F  GIF-YVE03","CentraleSupelec",null,"BBMK",null,"Bácskai Mihály",null,null,"SZTE ÁJTK Közigazgatási Jogi Tanszék"]
[{"$nulls":16},"F  ORSAY02","Institut d'Optique Graduate School",null,"BTK",null,"Balog Edit",null,null,"SZTE ÁJTK Magyar Jogtörténeti Tanszék"]
[null,"ERASMUS-koordinátora",{"$nulls":14},"F  PARIS481","Université Paris-Saclay",null,"ETSZK",null,"Békési József",null,null,"SZTE ÁJTK Munkajogi és Szociális Jogi Tanszék"]
[{"$nulls":11},"aláírás",{"$nulls":4},"F  VERSAIL11","Université Versailles-Saint-Quentin-en-Yvelines",null,"FOK",null,"Benkő Zsolt István",null,null,"SZTE ÁJTK Nemzetközi és Regionális Tanulmányok Intézet"]
[null,"az alábbi hallgatókat jelölöm ERASMUS+ ösztöndíjra a 2020/2021. tanévre.",{"$nulls":14},"P  PORTO02","Universidade do Porto",null,"GTK",null,"Berta Tibor",null,null,"SZTE ÁJTK Nemzetközi Jogi és Európa-jogi tanszék"]
[{"$nulls":16},"S  LUND01","Lunds Universitet",null,"GYTK",null,"Bíbok Károly",null,null,"SZTE ÁJTK Nemzetközi Magánjogi Tanszék"]
[null,"Partneregyetem kódja és neve",{"$nulls":4},"Hallgató neve",null,null,null,"Évfolyam",null,"Hónap",null,"Email",{"$nulls":4},"JGYPK",null,"Bozsó Gábor",null,null,"SZTE ÁJTK Összehasonlító Jogi Intézet"]
[{"$nulls":19},"MGK",null,"Bucin Mihaela Geni",null,null,"SZTE ÁJTK Politológiai Tanszék"]
[1,null,{"$f":"IF(ISERROR(VLOOKUP(B14,$Q$3:$R$11,2,FALSE)),\"\",VLOOKUP(B14,$Q$3:$R$11,2,FALSE))","v":""},{"$nulls":16},"MK",null,"Csányi Erzsébet",null,null,"SZTE ÁJTK Római Jogi Tanszék"]
[{"$nulls":19},"TTIK",null,"Csetényi Korinna",null,null,"SZTE ÁJTK Üzleti Jogi Intézet"]
[2,null,{"$f":"IF(ISERROR(VLOOKUP(B16,$Q$3:$R$11,2,FALSE)),\"\",VLOOKUP(B16,$Q$3:$R$11,2,FALSE))","v":""},{"$nulls":18},"Deákné Berkó Szilvia",null,null,"SZTE Általános Orvostudományi Kar"]
[{"$nulls":21},"Dékány Imre",null,null,"SZTE ÁOK Orvosi Informatikai Intézet"]
[3,null,{"$f":"IF(ISERROR(VLOOKUP(B18,$Q$3:$R$11,2,FALSE)),\"\",VLOOKUP(B18,$Q$3:$R$11,2,FALSE))","v":""},{"$nulls":18},"Dékány Renáta",null,null,"SZTE BBMK Bartók Béla Művészeti Kar"]
[{"$nulls":21},"Deli Alexandra Viktória",null,null,"SZTE BTK Altajisztika Tanszék"]
[4,null,{"$f":"IF(ISERROR(VLOOKUP(B20,$Q$3:$R$11,2,FALSE)),\"\",VLOOKUP(B20,$Q$3:$R$11,2,FALSE))","v":""},{"$nulls":18},"Dombi Edina",null,null,"SZTE BTK Általános Nyelvészeti Tanszék"]
[{"$nulls":21},"Doró Katalin",null,null,"SZTE BTK Angol-Amerikai Intézet"]
[5,null,{"$f":"IF(ISERROR(VLOOKUP(B22,$Q$3:$R$11,2,FALSE)),\"\",VLOOKUP(B22,$Q$3:$R$11,2,FALSE))","v":""},{"$nulls":18},"Durst Péter",null,null,"SZTE BTK Angol-Amerikai Intézet, Fordító- tolmácsképző és Hungarológia Központ"]
[{"$nulls":21},"Erdősi Erika",null,null,"SZTE BTK Filozófia Tanszék"]
[6,null,{"$f":"IF(ISERROR(VLOOKUP(B24,$Q$3:$R$11,2,FALSE)),\"\",VLOOKUP(B24,$Q$3:$R$11,2,FALSE))","v":""},{"$nulls":18},"Ezio Bernardelli",null,null,"SZTE BTK Finnugor Tanszék"]
[{"$nulls":21},"Farkas Attila",null,null,"SZTE BTK Francia Nyelvi és Irodalmi Tanszék"]
[7,null,{"$f":"IF(ISERROR(VLOOKUP(B26,$Q$3:$R$11,2,FALSE)),\"\",VLOOKUP(B26,$Q$3:$R$11,2,FALSE))","v":""},{"$nulls":18},"Farkas Baráthi Mónika",null,null,"SZTE BTK Germán Filológiai Intézet"]
[{"$nulls":21},"Finta Regina",null,null,"SZTE BTK Hispanisztika Tanszék"]
[8,null,{"$f":"IF(ISERROR(VLOOKUP(B28,$Q$3:$R$11,2,FALSE)),\"\",VLOOKUP(B28,$Q$3:$R$11,2,FALSE))","v":""},{"$nulls":18},"Fogarasi György",null,null,"SZTE BTK Klasszika-Filológia Tanszék"]
[{"$nulls":21},"Kórus Péter",null,null,"SZTE BTK Kommunikáció- és Médiatudományi Tanszék"]
[9,null,{"$f":"IF(ISERROR(VLOOKUP(B30,$Q$3:$R$11,2,FALSE)),\"\",VLOOKUP(B30,$Q$3:$R$11,2,FALSE))","v":""},{"$nulls":18},"Gaál Zsuzsanna",null,null,"SZTE BTK Könyvtár- és Humán Információtudományi Tanszék"]
[{"$nulls":21},"Gál József",null,null,"SZTE BTK Középkori Egyetemes Történeti Tanszék"]
[10,null,{"$f":"IF(ISERROR(VLOOKUP(B32,$Q$3:$R$11,2,FALSE)),\"\",VLOOKUP(B32,$Q$3:$R$11,2,FALSE))","v":""},{"$nulls":18},"Gál Zsuzsanna",null,null,"SZTE BTK Középkori és Kora Újkori Magyar Történeti Tanszék"]
[{"$nulls":21},"Galamb György",null,null,"SZTE BTK Magyar Irodalmi Tanszék"]
[11,null,{"$f":"IF(ISERROR(VLOOKUP(B34,$Q$3:$R$11,2,FALSE)),\"\",VLOOKUP(B34,$Q$3:$R$11,2,FALSE))","v":""},{"$nulls":18},"Gera Magdolna",null,null,"SZTE BTK Magyar Nyelvészeti Tanszék"]
[{"$nulls":21},"Gergely Árpád László",null,null,"SZTE BTK Magyar Nyelvi és Irodalmi Intézet, Vizuális Kultúra és Irodalomtudomány Tanszék"]
[12,null,{"$f":"IF(ISERROR(VLOOKUP(B36,$Q$3:$R$11,2,FALSE)),\"\",VLOOKUP(B36,$Q$3:$R$11,2,FALSE))","v":""},{"$nulls":18},"Gulyás Sándor",null,null,"SZTE BTK Néprajzi és Kulturális Antropológiai Tanszék"]
[{"$nulls":21},"Gyenge Balázs",null,null,"SZTE BTK Neveléstudományi Intézet"]
[{"$nulls":21},"Hajdú József",null,null,"SZTE BTK Olasz Nyelvi és Irodalmi Tanszék"]
["Jelölés ERASMUS+ ösztöndíjra  EUGLOH Partnerintézménybe",{"$nulls":20},"Hegyi Ádám",null,null,"SZTE BTK Összehasonlító Irodalomtudományi Tanszék"]
[{"$nulls":21},"Hunyadi Zsolt",null,null,"SZTE BTK Pszichológia Tanszék"]
[null,"Én, ",null,null,null,"a",null,"kar",{"$nulls":13},"Ivaskó Lívia",null,null,"SZTE BTK Régészeti Tanszék"]
[{"$nulls":21},"Jakab Éva",null,null,"SZTE BTK Szláv Intézet"]
[{"$nulls":9},"tanszék",{"$nulls":11},"Jámbori Szilvia",null,null,"SZTE BTK Szociológia Tanszék"]
[{"$nulls":21},"Józsa Krisztián",null,null,"SZTE BTK Történeti Segédtudományok Tanszék"]
[null,"ERASMUS-koordinátora",{"$nulls":19},"Csatlós Erzsébet",null,null,"SZTE BTK Újkori Egyetemes Történeti és Mediterrán Tanulmányok Tanszék"]
[{"$nulls":11},"aláírás",{"$nulls":9},"Juhász Krisztina",null,null,"SZTE BTK Vallástudományi Tanszék"]
[null,"az alábbi hallgatókat jelölöm ERASMUS+ ösztöndíjra a 2020/2021. tanévre.",{"$nulls":19},"Karsai Krisztina",null,null,"SZTE ETSZK Ápolási Tanszék"]
[{"$nulls":21},"Katona Péter",null,null,"SZTE ETSZK Fizioterápiás Tanszék"]
[null,"Partneregyetem kódja és neve",{"$nulls":4},"Hallgató neve",null,null,null,"Évfolyam",null,"Hónap",null,"Email",{"$nulls":6},"Katona Zsolt",null,null,"SZTE ETSZK Szociális Munka és Szociálpolitika Tanszék"]
[{"$nulls":21},"Keczer Gabriella",null,null,"SZTE Fogorvostudományi Kar"]
[13,null,{"$f":"IF(ISERROR(VLOOKUP(B51,$Q$3:$R$11,2,FALSE)),\"\",VLOOKUP(B51,$Q$3:$R$11,2,FALSE))","v":""},{"$nulls":18},"Kincsesné Nagy Éva",null,null,"SZTE Gazdaságtudományi Kar"]
[{"$nulls":21},"Kis Bernadett",null,null,"SZTE GYTK Gyógyszertechnológiai és Gyógyszerfelügyeleti Intézet"]
[14,null,{"$f":"IF(ISERROR(VLOOKUP(B53,$Q$3:$R$11,2,FALSE)),\"\",VLOOKUP(B53,$Q$3:$R$11,2,FALSE))","v":""},{"$nulls":18},"Kiss Márton",null,null,"SZTE JGYPK Alkalmazott Egészségtudományi és Egészségfejlesztési Intézet"]
[{"$nulls":21},"Kiss Tímea",null,null,"SZTE JGYPK Alkalmazott Humántudományi Intézet, Alkalmazott Nyelvészeti Tanszék"]
[15,null,{"$f":"IF(ISERROR(VLOOKUP(B55,$Q$3:$R$11,2,FALSE)),\"\",VLOOKUP(B55,$Q$3:$R$11,2,FALSE))","v":""},{"$nulls":18},"Kónya Zoltán",null,null,"SZTE JGYPK Alkalmazott Pedagógiai és Pszichológiai Tanszék"]
[{"$nulls":21},"Kovács Krisztina Ágnes",null,null,"SZTE JGYPK Alkalmazott Társadalomismereti és Kisebbségpolitikai Intézet"]
[16,null,{"$f":"IF(ISERROR(VLOOKUP(B57,$Q$3:$R$11,2,FALSE)),\"\",VLOOKUP(B57,$Q$3:$R$11,2,FALSE))","v":""},{"$nulls":18},"Kökény Andrea",null,null,"SZTE JGYPK Alkalmazott Természettudományi Intézet, Általános és Környezetfizikai Tanszék"]
[{"$nulls":21},"Krémer Sándor",null,null,"SZTE JGYPK Alkalmazott Természettudományi Intézet, Informatika Alkalmazásai Tanszék"]
[17,null,{"$f":"IF(ISERROR(VLOOKUP(B59,$Q$3:$R$11,2,FALSE)),\"\",VLOOKUP(B59,$Q$3:$R$11,2,FALSE))","v":""},{"$nulls":18},"Kruzslicz Péter",null,null,"SZTE JGYPK Alkalmazott Természettudományi Intézet, Technika Tanszék"]
[{"$nulls":21},"Kürtösi Katalin",null,null,"SZTE JGYPK Felnőttképzési Intézet"]
[18,null,{"$f":"IF(ISERROR(VLOOKUP(B61,$Q$3:$R$11,2,FALSE)),\"\",VLOOKUP(B61,$Q$3:$R$11,2,FALSE))","v":""},{"$nulls":18},"Maczelka Noémi",null,null,"SZTE JGYPK Gyógypedagógus-képző Intézet"]
[{"$nulls":21},"Mezei Péter",null,null,"SZTE JGYPK Modern Nyelvek és Kultúrák Tanszék, Angol Szakcsoport"]
[19,null,{"$f":"IF(ISERROR(VLOOKUP(B63,$Q$3:$R$11,2,FALSE)),\"\",VLOOKUP(B63,$Q$3:$R$11,2,FALSE))","v":""},{"$nulls":18},"Mód László",null,null,"SZTE JGYPK Modern Nyelvek és Kultúrák Tanszék, Francia Szakcsoport"]
[{"$nulls":21},"Nagy Csongor István",null,null,"SZTE JGYPK Modern Nyelvek és Kultúrák Tanszék, Orosz Szakcsoport"]
[20,null,{"$f":"IF(ISERROR(VLOOKUP(B65,$Q$3:$R$11,2,FALSE)),\"\",VLOOKUP(B65,$Q$3:$R$11,2,FALSE))","v":""},{"$nulls":18},"Nagy Gábor Dániel",null,null,"SZTE JGYPK Művészeti Intézet, Ének-Zene Tanszék"]
[{"$nulls":21},"Nagy Gyula",null,null,"SZTE JGYPK Művészeti Intézet, Rajz-Művészettörténeti Tanszék"]
[21,null,{"$f":"IF(ISERROR(VLOOKUP(B67,$Q$3:$R$11,2,FALSE)),\"\",VLOOKUP(B67,$Q$3:$R$11,2,FALSE))","v":""},{"$nulls":18},"Nagyillés János",null,null,"SZTE JGYPK Nemzetiségi Intézet, Német Nemzetiségi Tanszék"]
[{"$nulls":21},"Nánai László",null,null,"SZTE JGYPK Nemzetiségi Intézet, Román Nyelv és Irodalom Tanszék"]
[22,null,{"$f":"IF(ISERROR(VLOOKUP(B69,$Q$3:$R$11,2,FALSE)),\"\",VLOOKUP(B69,$Q$3:$R$11,2,FALSE))","v":""},{"$nulls":18},"Nóbik Attila Dr.",null,null,"SZTE JGYPK Nemzetiségi Intézet, Szlovák Nyelv és Irodalom Tanszék"]
[{"$nulls":21},"Nyári Tibor",null,null,"SZTE JGYPK Szakképzési, Távoktatási és Továbbképzési Intézet"]
[23,null,{"$f":"IF(ISERROR(VLOOKUP(B71,$Q$3:$R$11,2,FALSE)),\"\",VLOOKUP(B71,$Q$3:$R$11,2,FALSE))","v":""},{"$nulls":18},"Orosz Klára",null,null,"SZTE JGYPK Tanító- és Óvóképző Intézet, Óvóképző szakcsoport"]
[{"$nulls":21},"Pálinkó István",null,null,"SZTE JGYPK Tanító- és Óvóképző Intézet, Tanítóképző Szakcsoport"]
[24,null,{"$f":"IF(ISERROR(VLOOKUP(B73,$Q$3:$R$11,2,FALSE)),\"\",VLOOKUP(B73,$Q$3:$R$11,2,FALSE))","v":""},{"$nulls":18},"Pavlovits Tamás",null,null,"SZTE JGYPK Testnevelés és Sporttudományi Intézet"]
[{"$nulls":21},"Pluhár András",null,null,"SZTE Mérnöki Kar"]
[{"$nulls":21},"Pusztai Bertalan",null,null,"SZTE MGK Dékáni Hivatal"]
[{"$nulls":21},"Pusztai Varga Ildikó",null,null,"SZTE TTIK Alkalmazott és Környezeti Kémiai Tanszék"]
[{"$nulls":21},"Rábai Krisztina",null,null,"SZTE TTIK Ásványtani, Geokémiai és Kőzettani Tanszék"]
[{"$nulls":21},"Rácz Lajos",null,null,"SZTE TTIK Biológus Tanszékcsoport"]
[{"$nulls":21},"Rákhely Gábor",null,null,"SZTE TTIK Biotechnológiai Tanszék"]
[{"$nulls":21},"Sághy Miklós",null,null,"SZTE TTIK Éghajlattani és Tájföldrajzi Tanszék"]
[{"$nulls":21},"Sánta Tamás",null,null,"SZTE TTIK Fizikai Intézet"]
[{"$nulls":21},"Schirm Anita",null,null,"SZTE TTIK Fizikai Kémiai és Anyagtudományi Tanszék"]
[{"$nulls":21},"Sipőcz Katalin",null,null,"SZTE TTIK Földtani és Őslénytani Tanszék"]
[{"$nulls":21},"Sulyok Márton",null,null,"SZTE TTIK Gazdaság- és Társadalomföldrajz Tanszék"]
[{"$nulls":21},"Szabó Erzsébet",null,null,"SZTE TTIK Informatikai Tanszékcsoport"]
[{"$nulls":21},"Szabó Tamás",null,null,"SZTE TTIK Matematika Tanszékcsoport - Bolyai Intézet"]
[{"$nulls":21},"Szajbély Mihály",null,null,"SZTE TTIK Szerves Kémiai Tanszék"]
[{"$nulls":21},"Szalai Anikó",null,null,"SZTE TTIK Szervetlen és Analitikai Kémiai Tanszék"]
[{"$nulls":21},"Szalai Tünde",null,null,"SZTE TTIK Természeti Földrajzi és Geoinformatikai Tanszék"]
[{"$nulls":21},"Szász Géza"]
[{"$nulls":21},"Tóth János"]
[{"$nulls":21},"Tölgyesi Csaba",null,null,"Bachelor 1",null,3]
[{"$nulls":21},"Tuska Tünde",null,null,"Bachelor 2",null,4]
[{"$nulls":21},"Varga Norbert",null,null,"Bachelor 3",null,5]
[{"$nulls":21},"Vajda Róbert",null,null,"Master 1",null,6]
[{"$nulls":21},"Váradi Szilvia",null,null,"Master 2",null,7]
[{"$nulls":21},"Virág Zoltán",null,null,"PhD 1",null,8]
[{"$nulls":21},"Wölfling János",null,null,"PhD 2",null,9]
[{"$nulls":24},"PhD 3"]
[{"$nulls":21},"Szabó Tamás",null,null,"Osztatlan 2"]
[{"$nulls":21},"Szabó Tamás",null,null,"Osztatlan 3"]
[{"$nulls":21},"Szabó Tamás",null,null,"Osztatlan 4"]
[{"$nulls":21},"Szabó Tamás",null,null,"Osztatlan 5"]
[{"$nulls":21},"Szabó Tamás",null,null,"Osztatlan 6"]
[{"$nulls":21},"Szabó Tamás"]
[{"$nulls":21},"Szabó Tamás"]
[{"$nulls":21},"Szabó Tamás"]
[{"$nulls":21},"Szabó Tamás"]
[{"$nulls":21},"Szabó Tamás"]
[{"$nulls":21},"Szabó Tamás"]
[{"$nulls":21},"Szabó Tamás"]
[{"$nulls":21},"Szabó Tamás"]
[{"$nulls":21},"Szabó Tamás"]
[{"$nulls":21},"Szakonyi Zsolt"]
[{"$nulls":21},"Szalai Anikó"]
[{"$nulls":21},"Szász Géza"]
[{"$nulls":21},"Szatmári Zoltán"]
[{"$nulls":21},"Szőnyi György Endre"]
[{"$nulls":21},"Szőri Milán"]
[{"$nulls":21},"Tobak Orsolya"]
[{"$nulls":21},"Tombácz Etelka"]
[{"$nulls":21},"Tóth János"]
[{"$nulls":21},"Tölgyesi Csaba"]
[{"$nulls":21},"Törőcsikné dr. Görög Márta"]
[{"$nulls":21},"Tuska Tünde"]
[{"$nulls":21},"Vajda Róbert"]
[{"$nulls":21},"Vajda Zoltán"]
[{"$nulls":21},"Váradi Szilvia"]
[{"$nulls":21},"Virág Zoltán"]
[{"$nulls":21},"Wodala Barnabás"]
[{"$nulls":21},"Wölfling János"]
[{"$nulls":21},"Zimonyi István"]
[{"$nulls":21},"Zsigmond Ágnes"]